bitfinex/quotes_ETHUSD_20241123
["timestamp","ask_amount","ask_price","bid_price","bid_amount"]
[1732362074952,0.26659616,3346.3,3345.1,1.89606159]
[1732362075149,0.26659616,3346.3,3345.1,5.19326159]
[1732362075333,0.26659616,3346.3,3345.2,0.04637875]
[1732362075531,0.26659616,3346.3,3345.4,2.19326159]
[1732362075850,0.26659616,3346.3,3345.7,1.89606159]
[1732362076162,0.26659616,3346.3,3345.7,4.89606159]
[1732362076320,0.26659616,3346.3,3345.8,0.04599364]
[1732362077348,1.89606159,3347.6,3345.6,0.78]
[1732362077349,0.8245,3346.8,3346.0,2.19643559]
[1732362077505,0.8245,3346.8,3346.0,2.19326159]
[1732362077710,0.8245,3346.8,3346.1,0.04390018]
[1732362077912,1.191282,3346.7,3346.1,0.04390018]
[1732362078120,0.2015782,3346.6,3346.1,0.04390018]
[1732362079071,0.2015782,3346.6,3345.7,4.89606159]
[1732362079354,0.2015782,3346.6,3346.2,0.0438235]
[1732362079645,0.2015782,3346.6,3346.3,0.04378121]
[1732362079850,0.8245,3346.4,3346.3,0.04378121]
[1732362080154,0.8245,3346.4,3345.4,1.89606159]
[1732362080526,0.8245,3346.4,3345.5,0.04429953]
[1732362080912,0.8245,3346.4,3345.5,0.03687767]
[1732362083451,0.8245,3346.4,3345.5,0.04005167]
[1732362084252,0.22173602,3346.5,3345.9,3.0]
[1732362084435,0.2237518,3346.4,3346.0,0.003174]
[1732362084641,2.019682,3346.7,3346.2,0.003174]
[1732362084642,1.191282,3346.7,3346.2,0.003174]
[1732362084817,0.8043,3347.1,3346.4,1.89606159]
[1732362085149,0.8043,3347.1,3346.5,0.04338883]
[1732362085363,1.99547,3347.1,3346.5,0.04338883]
[1732362085548,0.199547,3347.0,3346.5,0.04338883]
[1732362088715,0.199547,3347.0,3346.2,0.2972]
[1732362088955,0.199547,3347.0,3346.6,0.04328689]
[1732362089168,0.199547,3347.0,3346.2,0.2972]
[1732362089366,0.199547,3347.0,3346.7,0.04322555]
[1732362089531,0.2195017,3346.9,3346.2,0.2972]
[1732362089732,0.2195017,3346.9,3346.8,0.04316142]
[1732362089933,0.2195017,3346.9,3346.2,0.2972]
[1732362090260,0.2195017,3346.9,3346.3,0.04348214]
[1732362094664,0.22149717,3346.9,3346.3,0.04348214]
[1732362094838,0.096826,3347.6,3346.3,0.04348214]
[1732362095271,0.221498,3347.2,3346.3,0.04348214]
[1732362095774,0.0079637,3347.2,3346.3,0.04348214]
[1732362096272,1.89606159,3348.0,3346.3,0.04348214]
[1732362096476,0.119128,3347.1,3346.3,0.04348214]
[1732362097071,1.89606159,3348.0,3346.4,1.094]
[1732362097072,1.15055883,3348.0,3346.4,1.094]
[1732362097273,1.89606159,3348.5,3346.6,0.2972]
[1732362097437,1.191131,3347.9,3346.8,0.2972]
[1732362097637,0.0681,3347.8,3347.0,0.2972]
[1732362097863,1e-08,3347.9,3347.1,0.04372549]
[1732362098277,1.89606159,3348.9,3347.1,0.04372549]
[1732362098583,1.191047,3348.4,3347.1,0.04372549]
[1732362099075,0.447847,3348.4,3347.3,0.2972]
[1732362099275,0.24950548,3348.8,3347.5,0.2972]
[1732362099462,0.21455671,3348.7,3347.5,0.2972]
[1732362099666,0.21455671,3348.7,3347.6,0.04340639]
[1732362100068,1.190894,3348.9,3347.6,0.04340639]
[1732362100372,0.17639399,3348.9,3347.6,0.04340639]
[1732362100583,1.89606159,3349.2,3347.7,0.2972]
[1732362100784,0.01321217,3349.1,3347.7,0.2972]
[1732362100942,0.85341817,3349.1,3347.8,0.04327231]
[1732362101888,0.85341817,3349.1,3347.8,0.34047231]
[1732362102099,0.85341817,3349.1,3347.8,0.2972]
[1732362102265,0.27494798,3349.0,3347.9,0.04320367]
[1732362103421,0.27494798,3349.0,3347.6,0.2972]
[1732362103917,1.89606159,3348.8,3347.6,0.2972]
[1732362104066,0.21710096,3348.7,3347.7,0.04339792]
[1732362104800,0.21710096,3348.7,3347.4,0.2972]
[1732362104997,0.21710096,3348.7,3347.8,0.04326994]
[1732362105305,0.21710096,3348.7,3347.9,0.04320582]
[1732362105513,0.21131626,3348.6,3347.9,0.04320582]
[1732362105696,0.21131626,3348.6,3347.4,0.2972]
[1732362105866,0.21131626,3348.6,3348.0,0.04307613]
[1732362106206,0.21131626,3348.6,3347.4,0.2972]
[1732362106405,0.23244788,3348.5,3348.1,0.04314318]
[1732362106702,0.23244788,3348.5,3347.4,0.2972]
[1732362107087,0.23244788,3348.5,3347.5,0.04355365]
[1732362109168,1.89606159,3348.4,3347.4,0.2972]
[1732362109376,0.23398257,3348.3,3346.7,1.04202045]
[1732362109773,0.23398257,3348.3,3346.8,0.04101185]
[1732362109998,0.2362492,3348.2,3346.8,0.04101185]
[1732362110208,0.2362492,3348.2,3346.8,0.33821185]
[1732362110874,0.2362492,3348.2,3346.8,0.43821185]
[1732362111070,0.2362492,3348.2,3347.0,0.2972]
[1732362111389,0.2362492,3348.2,3347.0,0.56452045]
[1732362111570,0.2362492,3348.2,3347.1,0.04078364]
[1732362111771,0.13376795,3348.2,3347.1,0.04078364]
[1732362112906,0.13376795,3348.2,3347.2,0.04082053]
[1732362113266,0.13376795,3348.2,3346.8,0.3972]
[1732362113465,0.13376795,3348.2,3347.3,0.04080012]
[1732362113696,0.13376795,3348.2,3346.8,0.2972]
[1732362113922,0.13376795,3348.2,3347.4,0.04074061]
[1732362114071,0.13376795,3348.2,3346.8,0.2972]
[1732362114275,0.13376795,3348.2,3347.0,0.2972]
[1732362114573,0.13376795,3348.2,3347.0,0.59202045]
[1732362114770,0.13376795,3348.2,3347.1,0.04088931]
[1732362118089,0.22622774,3348.2,3347.1,0.04088931]
[1732362118501,1.89606159,3348.4,3347.1,0.04088931]
[1732362119311,1.89606159,3348.4,3347.2,0.33784026]
[1732362120205,1.89606159,3348.4,3347.2,0.04064026]
[1732362120714,1.89606159,3348.4,3347.3,0.04059355]
[1732362120911,1.89606159,3348.4,3347.4,0.2972]
[1732362120912,0.21285095,3348.3,3347.4,0.2972]
[1732362121098,0.21285095,3348.3,3347.4,0.33771219]
[1732362123024,1.89606159,3348.4,3347.1,0.2972]
[1732362123186,0.21285095,3348.3,3347.5,0.03909765]
[1732362123383,0.21285095,3348.3,3347.1,0.2972]
[1732362123588,0.21285095,3348.3,3347.6,0.03903353]
[1732362123899,0.21285095,3348.3,3346.7,0.7752]
[1732362123900,0.21285095,3348.3,3346.8,0.2972]
[1732362124213,0.23413604,3348.2,3346.8,0.2972]
[1732362124425,1.89606159,3348.0,3346.9,0.03932941]
[1732362126187,0.23413604,3348.2,3347.0,0.62342407]
[1732362126389,1.89606159,3348.4,3347.0,0.62342407]
[1732362126625,1.89606159,3348.4,3348.3,3.0]
[1732362126822,1.89606159,3348.4,3347.1,0.03921149]
[1732362127030,1.89606159,3348.4,3347.0,0.62342407]
[1732362127201,0.21285095,3348.3,3347.2,0.03786595]
[1732362127387,0.21285095,3348.3,3347.1,0.03801373]
[1732362127590,1.89606159,3348.0,3347.3,0.03780182]
[1732362127821,1.89606159,3348.0,3347.2,0.03786336]
[1732362128073,1.89606159,3347.6,3346.7,0.2972]
[1732362128213,1.89606159,3347.6,3347.3,0.03779923]
[1732362128728,1.89606159,3347.6,3346.4,0.2972]
[1732362128934,0.18960616,3347.5,3346.4,0.2972]
[1732362129240,0.18960616,3347.5,3346.5,0.03835613]
[1732362130028,0.18960616,3347.5,3346.0,0.2972]
[1732362130197,0.18960616,3347.5,3346.6,0.03829197]
[1732362130532,1.89606159,3347.2,3346.7,0.03824228]
[1732362130908,1.89606159,3347.2,3346.0,0.62342408]
[1732362131109,1.89606159,3347.2,3346.8,0.03818201]
[1732362131312,0.21046284,3347.1,3346.0,0.62342408]
[1732362131843,0.21046284,3347.1,3346.1,0.03860929]
[1732362132206,0.21046284,3347.1,3346.2,0.2972]
[1732362132401,0.21046284,3347.1,3346.2,0.62342408]
[1732362132650,0.21065244,3347.0,3346.3,0.03895124]
[1732362133313,0.21065244,3347.0,3346.4,0.03752457]
[1732362133638,0.21065244,3347.0,3345.6,0.2972]
[1732362133937,0.23171769,3346.9,3345.8,0.2972]
[1732362134309,0.23171769,3346.9,3345.9,0.03775712]
[1732362135220,0.23171769,3346.9,3345.6,0.2972]
[1732362135403,1.89606159,3346.8,3345.6,0.2972]
[1732362135754,0.21277793,3346.7,3345.7,0.03782052]
[1732362136503,1.89606159,3346.5,3345.7,0.03782052]
[1732362136937,1.89606159,3346.5,3345.5,0.74011835]
[1732362137148,1.89606159,3346.1,3345.8,0.03775632]
[1732362137323,1.89606159,3346.1,3344.6,0.2972]
[1732362137523,0.18960616,3346.0,3344.6,0.2972]
[1732362137710,0.18960616,3346.0,3344.7,0.03868157]
[1732362139791,0.18960616,3346.0,3344.7,0.33772031]
[1732362140080,0.20856677,3345.9,3344.7,0.33772031]
[1732362142579,0.20856677,3345.9,3344.7,0.03868157]
[1732362142986,0.20856677,3345.9,3344.7,0.79284139]
[1732362143187,0.20856677,3345.9,3344.7,0.03868157]
[1732362143485,0.20856677,3345.9,3344.3,0.59623874]
[1732362143790,0.20856677,3345.9,3344.4,0.03870403]
[1732362145390,1.89606159,3345.7,3344.4,0.03870403]
[1732362145584,0.21046284,3345.6,3344.4,0.03870403]
[1732362146086,1.89606159,3345.3,3344.4,0.03870403]
[1732362148176,1.89606159,3345.3,3344.4,0.33590403]
[1732362149546,1.89606159,3345.3,3344.4,0.03870403]
[1732362149950,1.89606159,3345.3,3343.9,0.2972]
[1732362150184,0.24950548,3345.2,3344.5,0.03721415]
[1732362150487,0.24950548,3345.2,3344.6,0.03710612]
[1732362150880,0.24950548,3345.2,3343.8,0.2972]
[1732362151184,0.21455671,3345.1,3343.9,0.03711576]
[1732362151370,0.21455671,3345.1,3344.1,0.2972]
[1732362151750,0.21455671,3345.1,3344.2,0.03690048]
[1732362152889,0.21455671,3345.1,3344.3,0.0368579]
[1732362153250,0.21455671,3345.1,3344.4,0.03679388]
[1732362153452,0.21455671,3345.1,3344.0,0.2972]
[1732362153700,0.21455671,3345.1,3344.9,0.00744375]
[1732362154458,0.21455671,3345.1,3345.0,0.03682838]
[1732362154666,0.21455671,3345.1,3344.2,0.2972]
[1732362155072,0.21455671,3345.1,3344.3,0.03575072]
[1732362155479,0.21455671,3345.1,3343.8,0.2972]
[1732362155789,0.21455671,3345.1,3343.9,0.03610436]
[1732362156285,1.89606159,3344.9,3343.9,0.03610436]
[1732362156498,1.89606159,3344.9,3343.7,0.0050046]
[1732362156499,0.21106183,3344.8,3343.7,0.0050046]
[1732362156868,0.21106183,3344.8,3343.8,0.03615955]
[1732362169000,0.21106183,3344.8,3343.9,0.2972]
[1732362169364,0.21106183,3344.8,3344.0,0.03453312]
[1732362169564,0.21071234,3344.7,3344.0,0.03453312]
[1732362172009,1.89606159,3345.3,3345.2,3.0]
[1732362172298,1.89606159,3345.3,3345.2,0.03332184]
[1732362172500,1.89606159,3345.3,3343.9,0.2972]
[1732362172696,1.89606159,3345.3,3344.0,0.0329819]
[1732362172900,0.24950548,3345.2,3344.0,0.0329819]
[1732362174264,0.24950548,3345.2,3345.0,3.0]
[1732362174588,0.24950548,3345.2,3345.1,0.03228989]
[1732362174902,0.24950548,3345.2,3344.3,0.8035]
[1732362175064,0.24950548,3345.2,3344.4,0.03273948]
[1732362175065,0.21455671,3345.1,3344.4,0.03273948]
[1732362176901,0.21455671,3345.1,3345.0,3.0]
[1732362177202,0.21455671,3345.1,3345.0,3.0328788]
[1732362177610,0.21455671,3345.1,3345.0,0.0328788]
[1732362178108,0.21455671,3345.1,3344.3,0.2972]
[1732362178109,0.21455671,3345.1,3344.3,1.05285061]
[1732362178315,0.21455671,3345.1,3344.4,0.0327366]
[1732362181968,1.89606159,3344.9,3344.4,0.0327366]
[1732362182197,1.89606159,3344.9,3343.7,0.0050046]
[1732362182198,0.7516,3344.7,3343.7,0.0050046]
[1732362182407,0.7516,3344.7,3344.5,0.03174246]
[1732362182714,0.7516,3344.7,3343.7,0.0050046]
[1732362182920,0.7516,3344.7,3343.8,0.03219231]
[1732362183116,0.28587234,3344.6,3343.7,0.0050046]
[1732362183272,0.28587234,3344.6,3343.8,0.03219231]
[1732362183580,0.28587234,3344.6,3343.7,0.0050046]
[1732362183919,0.28587234,3344.6,3343.8,0.0322142]
[1732362184215,0.28587234,3344.6,3343.7,0.0050046]
[1732362184515,0.28587234,3344.6,3343.8,0.0322142]
[1732362184702,0.28587234,3344.6,3343.7,0.0050046]
[1732362185013,0.28587234,3344.6,3343.8,0.0322142]
[1732362185171,0.28587234,3344.6,3343.9,0.2972]
[1732362185372,0.28587234,3344.6,3343.8,0.8123]
[1732362185577,0.28587234,3344.6,3344.0,0.03208566]
[1732362185818,0.28587234,3344.6,3343.9,0.03214993]
[1732362185998,0.28587234,3344.6,3344.1,0.03202139]
[1732362186317,0.28587234,3344.6,3344.2,0.03195712]
[1732362186511,0.28587234,3344.6,3343.9,0.2972]
[1732362186721,0.28587234,3344.6,3344.0,0.03208566]
[1732362186885,0.28587234,3344.6,3343.8,1.54712094]
[1732362187084,0.28587234,3344.6,3344.0,0.7611]
[1732362187402,0.7516,3345.0,3344.1,0.32925076]
[1732362189651,0.7516,3345.0,3344.3,0.2972]
[1732362189850,0.304,3345.7,3344.3,0.2972]
[1732362189851,0.89774083,3345.4,3344.3,0.2972]
[1732362190049,0.16493408,3345.3,3344.4,0.03184987]
[1732362190249,0.7516,3345.3,3344.4,0.03184987]
[1732362192459,0.7516,3345.0,3344.4,0.03184987]
[1732362192656,0.7516,3345.0,3343.6,0.2972]
[1732362192657,0.26479458,3344.9,3343.9,0.7611]
[1732362192859,0.7516,3344.8,3343.9,0.7611]
[1732362193085,0.7516,3344.8,3344.0,0.03294129]
[1732362195167,0.26479458,3344.9,3344.2,0.2972]
[1732362195461,2.64794584,3345.5,3344.3,0.7611]
[1732362195665,2.64794584,3345.5,3344.3,0.79384299]
[1732362195877,0.29519458,3345.4,3344.4,1.0583]
[1732362196078,0.7516,3345.7,3344.5,1.0583]
[1732362196282,0.7516,3345.7,3344.5,1.09089797]
[1732362201890,1.89634584,3345.5,3344.5,1.09089797]
[1732362202275,1.89634584,3345.5,3344.2,0.2972]
[1732362202599,1.89634584,3345.5,3344.6,0.03130667]
[1732362202600,0.26479458,3345.4,3344.6,0.03130667]
[1732362202778,0.26479458,3345.4,3344.2,0.2972]
[1732362202977,0.26479458,3345.4,3344.7,0.0312423]
[1732362203251,0.21611404,3345.3,3344.2,0.2972]
[1732362203392,0.8035,3345.2,3344.3,0.2972]
[1732362203599,0.8035,3345.2,3344.3,0.32871159]
[1732362204511,0.8035,3345.2,3344.3,0.03151159]
[1732362204709,1.89634584,3345.1,3344.3,0.03151159]
[1732362204866,0.29159599,3345.0,3344.0,0.2972]
[1732362205308,0.29159599,3345.0,3344.3,0.2972]
[1732362205614,0.29159599,3345.0,3344.4,0.03144409]
[1732362205782,0.29914418,3344.9,3344.4,0.03144409]
[1732362206794,1.89634584,3344.7,3344.4,0.03144409]
[1732362207012,1.89634584,3344.7,3343.8,0.7651]
[1732362207215,1.89634584,3344.7,3344.5,0.02878403]
[1732362207416,1.89634584,3344.7,3343.9,0.02919707]
[1732362207730,0.296019,3344.6,3344.5,0.0298911]
[1732362207932,0.296019,3344.6,3343.8,0.7651]
[1732362208408,0.296019,3344.6,3343.9,0.0304117]
[1732362208580,0.29570648,3344.5,3343.9,0.0304117]
[1732362209128,0.29570648,3344.5,3343.9,0.3276117]
[1732362209893,0.29570648,3344.5,3343.9,0.0304117]
[1732362210294,0.29570648,3344.5,3344.0,1.0623]
[1732362210515,0.7647,3344.8,3344.0,0.7651]
[1732362210706,0.7647,3344.8,3344.1,0.03019233]
[1732362211103,0.7852,3345.0,3344.1,0.32739233]
[1732362211303,0.97483458,3345.0,3344.1,0.32739233]
[1732362212192,0.7852,3345.0,3344.2,1.1001]
[1732362212532,0.7852,3345.0,3344.2,0.73870701]
[1732362216168,0.7852,3345.0,3344.2,0.0301182]
[1732362216454,0.7852,3344.8,3343.9,1.1001]
[1732362216660,0.26815458,3344.7,3344.3,0.03004406]
[1732362216963,0.26815458,3344.7,3343.9,1.1001]
[1732362217118,0.26815458,3344.7,3344.4,0.02782922]
[1732362217316,0.26815458,3344.7,3344.5,0.02775862]
[1732362217521,0.29497004,3344.6,3343.9,1.1001]
[1732362217762,0.29497004,3344.6,3343.7,1.1051046]
[1732362218048,1.89634584,3344.5,3344.0,0.02810281]
[1732362218219,0.7852,3344.3,3343.7,0.3022046]
[1732362218837,0.7852,3344.3,3343.7,0.0050046]
[1732362222492,0.7852,3344.3,3343.4,0.74746575]
[1732362222648,0.29006774,3344.2,3343.4,0.74746575]
[1732362226468,2.18641358,3344.2,3343.4,0.74746575]
[1732362226668,0.89832021,3344.0,3343.4,0.74746575]
[1732362228270,0.89832021,3344.0,3343.0,1.0538]
[1732362228271,1.67662021,3343.6,3343.0,1.0538]
[1732362228459,1.67662021,3343.6,3342.9,0.2972]
[1732362228460,0.16766202,3343.5,3342.9,0.2972]
[1732362228851,0.89832021,3343.4,3342.9,0.2972]
[1732362229582,0.89832021,3343.4,3342.7,0.2972]
[1732362229888,0.18442822,3343.3,3342.7,0.2972]
[1732362230852,2.67677051,3343.6,3342.7,0.2972]
[1732362233256,0.8188,3343.5,3342.7,0.2972]
[1732362233792,0.8188,3343.5,3342.4,1.0887]
[1732362233987,0.27172705,3343.4,3342.4,1.0887]
[1732362234368,0.8188,3343.3,3342.4,1.0887]
[1732362237386,0.8188,3343.3,3342.4,0.2972]
[1732362237610,0.8188,3343.3,3342.4,1.0887]
[1732362238186,0.8188,3343.3,3342.4,0.2972]
[1732362239563,0.8188,3343.3,3342.3,0.2972]
[1732362239564,0.8188,3343.2,3342.3,0.2972]
[1732362239772,0.8188,3343.0,3342.3,0.2972]
[1732362240091,0.8188,3343.0,3342.3,0.32712883]
[1732362240409,0.29889976,3343.1,3342.6,0.7915]
[1732362240707,0.8188,3343.2,3342.6,1.0887]
[1732362240861,0.7971,3343.6,3342.6,1.0887]
[1732362241066,0.7971,3343.6,3342.9,0.7896]
[1732362241266,0.7971,3343.9,3343.0,0.2972]
[1732362243312,0.21176021,3344.1,3343.3,0.7896]
[1732362243475,0.7971,3344.4,3343.5,0.3972]
[1732362243684,1.89847051,3344.8,3343.3,0.1]
[1732362243685,0.7896,3344.6,3343.7,0.3972]
[1732362244371,0.98694705,3344.7,3343.7,0.3972]
[1732362245282,0.98694705,3344.7,3343.7,0.2972]
[1732362247499,0.98694705,3344.7,3343.6,0.73845442]
[1732362247708,0.36750176,3344.6,3343.6,0.73845442]
[1732362248122,2.88541756,3344.7,3343.6,0.73845442]
[1732362248494,2.08831756,3344.7,3343.6,0.73845442]
[1732362248689,0.7969,3344.2,3343.0,0.1]
[1732362248888,0.7969,3344.2,3342.6,3.02990935]
[1732362248889,0.7969,3343.8,3342.6,0.2]
[1732362249115,0.26953705,3343.7,3342.8,0.1]
[1732362249317,0.26953705,3343.7,3343.0,0.1]
[1732362249925,0.26953705,3343.7,3342.4,0.1]
[1732362250133,0.29649076,3343.6,3342.8,0.2]
[1732362250487,0.29649076,3343.6,3342.9,0.7676]
[1732362252433,0.7969,3343.5,3342.6,0.7676]
[1732362252922,2.69537051,3343.5,3342.6,0.7676]
[1732362253122,0.29918613,3343.4,3342.6,0.7676]
[1732362253839,0.7969,3343.3,3342.2,0.7676]
[1732362256761,0.7969,3343.3,3342.2,0.8676]
[1732362256963,0.29945566,3343.2,3342.2,0.8676]
[1732362257656,0.29945566,3343.2,3342.2,0.7676]
[1732362257815,0.29945566,3343.2,3342.3,0.1]
[1732362258457,0.29945566,3343.2,3342.2,0.7676]
[1732362258662,0.7969,3343.1,3342.3,0.1]
[1732362259266,0.7969,3343.1,3342.2,0.7676]
[1732362259749,0.7969,3343.1,3342.3,0.1]
[1732362259920,0.7969,3343.1,3342.2,0.7676]
[1732362260118,0.7969,3343.1,3342.3,0.1]
[1732362260848,0.7969,3343.1,3342.0,0.3972]
[1732362260849,2.69537051,3343.1,3342.0,0.3972]
[1732362261049,1.08258262,3343.0,3342.0,0.3972]
[1732362261357,1.08258262,3343.0,3342.1,0.1]
[1732362261655,1.08258262,3343.0,3342.0,0.1]
[1732362261656,1.08258262,3343.0,3342.0,0.2]
[1732362261856,1.08258262,3343.0,3342.0,0.1]
[1732362262156,0.29810531,3342.9,3342.0,0.1]
[1732362262964,0.29810531,3342.9,3342.0,0.2]
[1732362263503,0.55,3345.0,3342.0,0.2]
[1732362263660,1.89847051,3343.3,3342.0,0.2]
[1732362264560,1.89847051,3343.3,3342.1,0.8228]
[1732362266501,0.7801,3343.2,3342.1,0.8228]
[1732362266664,0.7801,3343.2,3342.3,0.1]
[1732362267002,0.7801,3343.2,3342.0,0.1]
[1732362267003,0.26785705,3343.1,3342.6,0.7769]
[1732362267159,0.596,3343.8,3342.8,0.1]
[1732362267160,0.7801,3343.8,3342.8,0.1]
[1732362267695,0.7801,3343.8,3342.6,1.0741]
[1732362268459,0.7801,3343.8,3342.9,0.1]
[1732362268860,0.7801,3343.8,3342.4,0.1]
[1732362268861,0.7801,3343.2,3342.4,0.2]
[1732362269117,0.26785705,3343.1,3342.4,0.2]
[1732362270501,0.7801,3343.5,3342.4,0.2]
[1732362270698,0.7801,3343.5,3342.5,0.7769]
[1732362274611,0.7801,3343.5,3342.6,0.1]
[1732362274947,1.89847051,3343.7,3342.6,0.1]
[1732362274948,0.596,3344.0,3343.6,0.7769]
[1732362275143,0.7801,3344.3,3342.9,0.1]
[1732362275348,0.26785705,3344.2,3343.2,0.34836329]
[1732362276057,0.26785705,3344.2,3343.0,0.2978]
[1732362278215,0.26785705,3344.2,3343.0,0.7769]
[1732362279870,0.26785705,3344.2,3343.1,0.34836329]
[1732362281428,0.26785705,3344.2,3343.2,0.8197]
[1732362281629,0.26785705,3344.2,3343.3,0.34836329]
[1732362285165,0.26785705,3344.2,3343.4,0.7564]
[1732362285367,0.814,3344.8,3343.5,0.34836329]
[1732362285568,0.814,3344.8,3343.6,0.7564]
[1732362285886,0.27124705,3344.7,3343.6,1.10476329]
[1732362286658,0.27124705,3344.7,3343.6,0.7564]
[1732362287593,0.7804,3344.6,3343.6,0.7564]
[1732362287984,0.7804,3344.6,3343.4,0.8522]
[1732362288190,0.7804,3344.4,3343.4,0.1]
[1732362290298,0.7804,3344.4,3342.8,0.34836329]
[1732362290299,0.7804,3344.2,3342.8,0.44836329]
[1732362290502,0.7804,3343.8,3342.8,0.34836329]
[1732362290662,0.7804,3343.8,3342.7,0.37366539]
[1732362290856,0.7804,3343.8,3342.4,0.7522]
[1732362291085,1.04828705,3343.7,3342.4,0.7522]
[1732362291503,1.04828705,3343.7,3342.7,0.1]
[1732362294992,1.04828705,3343.7,3342.8,0.7522]
[1732362295193,1.04828705,3343.7,3342.9,0.1]
[1732362295440,0.29467576,3343.6,3342.9,0.1]
[1732362296398,0.7804,3344.0,3343.1,0.1]
[1732362296593,0.7804,3344.0,3343.2,0.7522]
[1732362298428,0.7804,3344.0,3343.3,0.1]
[1732362300341,0.7804,3344.5,3343.3,0.44836329]
[1732362300636,0.7804,3344.5,3343.7,0.1]
[1732362301160,0.8084,3345.0,3343.7,0.12990435]
[1732362301357,0.99824705,3345.0,3343.7,0.1]
[1732362301667,0.99824705,3345.0,3344.1,0.1]
[1732362301834,0.28967176,3344.9,3344.1,0.1]
[1732362302923,0.28967176,3344.9,3344.1,0.9058]
[1732362303125,0.99824705,3345.0,3344.1,0.9058]
[1732362303425,0.8084,3345.0,3344.1,0.9058]
[1732362307443,0.55,3344.7,3343.9,0.1]
[1732362307770,0.8057,3344.6,3343.9,0.1]
[1732362309751,0.8057,3344.6,3343.7,0.1]
[1732362309978,0.8057,3344.6,3343.5,0.3978]
[1732362310185,0.8057,3344.6,3343.9,0.1]
[1732362311046,0.79281939,3344.6,3343.9,0.1]
[1732362311947,0.79281939,3344.6,3343.7,0.1]
[1732362312787,2.44847051,3344.5,3343.6,0.1]
[1732362313196,2.44847051,3344.5,3343.4,0.1]
[1732362313486,2.44847051,3344.5,3343.6,0.1]
[1732362313689,0.26933176,3344.4,3343.6,0.1]
[1732362314091,0.8057,3344.3,3343.4,0.1]
[1732362314289,0.35235023,3344.2,3343.4,0.1]
[1732362314504,0.8057,3344.1,3343.4,0.1]
[1732362315156,0.35235023,3344.2,3343.4,0.1]
[1732362315157,0.8057,3343.9,3343.4,0.1]
[1732362317099,0.8057,3343.9,3342.8,0.44836329]
[1732362317100,0.55,3343.8,3342.8,0.44836329]
[1732362317398,0.55,3343.6,3342.8,0.44836329]
[1732362317556,0.55,3343.8,3342.8,0.1]
[1732362317557,0.8057,3343.4,3342.8,0.1]
[1732362317898,0.8057,3343.4,3343.0,0.1]
[1732362318562,0.8057,3343.4,3343.0,0.44836329]
[1732362318958,0.8057,3343.4,3343.0,0.34836329]
[1732362319294,0.8057,3343.4,3342.7,0.1]
[1732362320598,0.8057,3343.4,3342.8,0.1]
[1732362320784,0.55,3343.3,3342.8,0.1]
[1732362320987,0.7785,3343.2,3342.8,0.1]
[1732362321502,0.7785,3343.2,3342.8,0.44836329]
[1732362321700,0.7785,3343.2,3342.8,0.1]
[1732362321996,0.7785,3343.2,3342.9,0.34836329]
[1732362322372,0.7785,3343.2,3342.8,0.1]
[1732362322573,0.7785,3343.2,3342.3,0.7816]
[1732362322574,0.7785,3343.2,3342.7,0.1]
[1732362322768,0.7785,3343.2,3342.9,0.34836329]
[1732362323180,0.7785,3343.2,3342.7,0.1]
[1732362323400,0.7785,3343.2,3342.8,0.34836329]
[1732362323695,0.7785,3343.2,3342.7,0.1]
[1732362323869,0.7785,3343.2,3342.8,0.34836329]
[1732362324070,0.7785,3343.2,3342.7,0.1]
[1732362324566,0.7785,3343.2,3342.7,0.44836329]
[1732362325374,0.7785,3343.2,3342.8,0.34836329]
[1732362325569,0.7785,3343.2,3342.7,0.1]
[1732362326311,0.7785,3343.2,3342.4,0.34836329]
[1732362326312,0.7785,3343.2,3342.8,0.1]
[1732362328964,0.37239338,3343.2,3342.8,0.44836329]
[1732362330002,0.37239338,3343.2,3342.8,0.34836329]
[1732362330219,0.37239338,3343.2,3342.9,0.34836329]
[1732362331381,1.89847051,3344.5,3343.1,0.1]
[1732362331703,1.89847051,3344.5,3343.3,0.1]
[1732362331704,0.59157247,3344.4,3343.3,0.1]
[1732362331907,0.7956,3344.4,3343.3,0.44836329]
[1732362332073,0.7956,3344.4,3343.4,0.34836329]
[1732362332278,0.7956,3344.0,3342.7,0.1]
[1732362332793,0.7956,3344.0,3342.8,0.34836329]
[1732362333167,0.7956,3343.6,3342.8,0.34836329]
[1732362333372,1.89847051,3343.7,3342.4,0.3978]
[1732362333373,0.81940705,3343.5,3342.4,0.3978]
[1732362333571,0.55,3343.3,3342.4,0.74616329]
[1732362333795,0.7956,3343.3,3342.8,0.1]
[1732362334372,0.7956,3343.3,3342.5,0.34836329]
[1732362334573,0.7956,3343.3,3342.4,0.3978]
[1732362334778,0.27178776,3343.4,3342.4,0.1]
[1732362334779,0.7956,3343.0,3342.4,0.1]
[1732362337092,0.55,3342.9,3342.4,0.1]
[1732362338716,0.55,3342.9,3342.2,0.1]
[1732362341482,0.55,3342.9,3342.3,0.1]
[1732362345635,0.7834,3342.8,3342.3,0.1]
[1732362350823,0.7834,3342.8,3342.4,0.34836329]
[1732362352254,1.89847051,3343.3,3342.4,1.17546329]
[1732362352255,0.8044,3343.1,3342.4,1.17546329]
[1732362352416,0.55,3343.0,3342.4,1.17546329]
[1732362352742,0.55,3343.0,3342.4,0.34836329]
[1732362353446,0.8044,3343.1,3342.4,0.34836329]
[1732362353768,0.28927176,3343.0,3342.4,0.34836329]
[1732362353962,0.8044,3343.1,3342.4,0.34836329]
[1732362354708,0.8044,3343.6,3342.7,0.9271]
[1732362355019,0.8044,3343.6,3342.8,0.34836329]
[1732362356252,0.8044,3343.6,3342.7,0.1]
[1732362356749,0.27028705,3343.5,3342.8,0.44836329]
[1732362357109,0.27028705,3343.5,3342.8,0.34836329]
[1732362357313,0.8044,3343.3,3342.8,0.34836329]
[1732362357547,0.1624687,3343.2,3342.8,0.34836329]
[1732362357749,0.1624687,3343.2,3342.3,0.8271]
[1732362357750,1.89847051,3342.9,3342.0,0.1]
[1732362358051,0.8044,3342.5,3341.5,0.1]
[1732362358357,0.8044,3342.5,3341.6,0.31933302]
[1732362358548,0.8044,3342.5,3342.0,0.1]
[1732362359048,0.8044,3342.5,3342.0,0.31933302]
[1732362359348,0.8044,3342.5,3341.7,0.31933302]
[1732362360017,0.8044,3342.5,3342.0,0.1]
[1732362361210,0.8044,3342.5,3342.0,0.41933302]